bitfinex/quotes_SOLUSD_20250216
["timestamp","ask_amount","ask_price","bid_price","bid_amount"]
[1739707884636,0.03,193.59,193.58,14.41184853]
[1739707887529,0.03,193.59,193.58,96.31184853]
[1739707888640,0.03,193.59,193.58,97.08644175]
[1739707889015,0.03,193.62,193.61,34.41184853]
[1739707889234,0.03,193.62,193.61,117.0862727]
[1739707889441,0.03,193.62,193.61,116.31184853]
[1739707891634,0.03,193.62,193.61,117.31184853]
[1739707891836,0.03,193.62,193.61,116.31184853]
[1739707892150,0.03,193.62,193.61,117.31184853]
[1739707892652,0.03,193.62,193.61,116.31184853]
[1739707899725,0.03,193.62,193.61,117.31184853]
[1739707900048,0.03,193.62,193.61,116.31184853]
[1739707914465,0.03,193.62,193.61,117.31184853]
[1739707916760,0.03,193.62,193.61,21.0]
[1739707916934,0.03,193.62,193.61,20.0]
[1739707917135,0.03,193.62,193.61,33.41184853]
[1739707917585,0.03,193.62,193.61,34.41184853]
[1739707918552,0.03,193.62,193.61,33.41184853]
[1739707918849,0.03,193.62,193.61,34.41184853]
[1739707923277,0.03,193.62,193.61,116.31184853]
[1739707924346,0.03,193.62,193.61,252.51184853]
[1739707926048,0.03,193.62,193.61,282.51184853]
[1739707927274,0.03,193.62,193.61,288.53827849]
[1739707927783,0.03,193.63,193.62,15.41184853]
[1739707927949,0.03,193.63,193.62,16.18598878]
[1739707928778,0.03,193.63,193.62,46.18598878]
[1739707932191,0.03,193.63,193.62,263.28598878]
[1739707932483,0.03,193.63,193.62,262.51184853]
[1739707936496,0.03,193.63,193.62,344.27184853]
[1739707940598,0.03,193.63,193.62,350.29827849]
[1739707941075,0.03,193.63,193.62,350.36127849]
[1739707941890,0.03,193.63,193.62,359.23696872]
[1739707942299,0.03,193.63,193.62,365.65766872]
[1739707942803,0.03,193.63,193.62,391.27870304]
[1739707943803,0.03,193.65,193.63,60.91184853]
[1739707943986,0.03,193.65,193.63,91.68596599]
[1739707944304,6.6355,193.77,193.69,14.41184853]
[1739707944506,6.6355,193.77,193.69,96.31184853]
[1739707944694,6.6355,193.77,193.69,97.31184853]
[1739707944892,6.6355,193.77,193.69,127.31184853]
[1739707945305,6.6355,193.77,193.69,129.40775991]
[1739707948507,6.6355,193.77,193.69,264.60775991]
[1739707953514,6.6355,193.77,193.69,263.60775991]
[1739707953713,6.6355,193.77,193.69,264.60775991]
[1739707954512,6.6355,193.77,193.69,263.60775991]
[1739707958920,6.6355,193.77,193.69,128.40775991]
[1739707959709,1.5878,193.73,193.69,128.40775991]
[1739707959909,1.5878,193.73,193.69,126.31184853]
[1739707961218,1.5878,193.73,193.69,125.31184853]
[1739707961403,1.5878,193.73,193.69,126.31184853]
[1739707961602,1.5878,193.73,193.69,128.35937552]
[1739707962021,1.5878,193.73,193.69,125.31184853]
[1739707962210,1.5878,193.73,193.69,95.31184853]
[1739707964825,1.5878,193.73,193.69,230.51184853]
[1739707965001,1.5878,193.73,193.69,231.51184853]
[1739707968507,0.03,193.73,193.69,232.51184853]
[1739707969236,0.03,193.73,193.69,231.51184853]
[1739707979713,0.03,193.73,193.69,230.51184853]
[1739707980208,0.03,193.73,193.69,231.51184853]
[1739707980540,0.03,193.73,193.69,230.51184853]
[1739707981838,0.03,193.73,193.69,231.51184853]
[1739707983738,0.03,193.73,193.69,230.51184853]
[1739707984245,4.2585,193.77,193.72,20.0]
[1739707984545,4.2585,193.77,193.74,20.0]
[1739707989929,4.2885,193.77,193.74,20.0]
[1739707992542,0.03,193.77,193.74,20.0]
[1739707993940,81.7478,193.81,193.74,20.0]
[1739707995444,81.7478,193.81,193.75,20.0]
[1739707997554,6.4628,193.82,193.77,20.0]
[1739708000049,6.4628,193.82,193.74,81.9]
[1739708000256,6.4628,193.82,193.77,20.0]
[1739708011552,0.03,193.82,193.77,20.0]
[1739708013449,0.03,193.82,193.77,20.063]
[1739708013967,0.03,193.82,193.78,20.0]
[1739708014277,0.03,193.82,193.78,101.9]
[1739708024277,0.03,193.82,193.77,20.063]
[1739708028968,0.03,193.82,193.77,21.063]
[1739708029396,0.03,193.82,193.79,20.0]
[1739708039200,0.03,193.82,193.8,20.0]
[1739708054302,0.03,193.82,193.78,13.41184853]
[1739708059931,0.03,193.82,193.78,95.31184853]
[1739708061730,0.03,193.82,193.78,95.31184853]
[1739708062727,0.03,193.82,193.78,81.9]
[1739708063648,0.03,193.82,193.78,20.0]
[1739708063822,0.03,193.82,193.77,0.063]
[1739708068634,1.615,193.8,193.77,0.063]
[1739708068946,6.4557,193.79,193.77,0.063]
[1739708071857,81.7478,193.78,193.77,0.063]
[1739708072068,6.4557,193.79,193.77,0.063]
[1739708079785,15.02684853,193.8,193.77,0.063]
[1739708080370,21.615,193.8,193.77,0.063]
[1739708081367,0.03,193.82,193.77,0.063]
[1739708084398,0.03,193.81,193.77,0.063]
[1739708089790,0.03,193.81,193.77,20.063]
[1739708094685,0.03,193.81,193.77,21.7281]
[1739708095599,0.03,193.81,193.77,84.6281]
[1739708095815,0.03,193.81,193.8,20.0]
[1739708098310,0.03,193.81,193.77,84.6281]
[1739708099488,0.03,193.81,193.8,20.0]
[1739708100715,0.03,193.81,193.77,81.963]
[1739708100913,0.03,193.81,193.77,0.063]
[1739708106817,20.0,193.8,193.77,0.063]
[1739708108304,82.6,193.79,193.77,0.063]
[1739708113424,82.6,193.78,193.77,0.063]
[1739708113598,13.41184853,193.79,193.77,0.063]
[1739708115397,14.41184853,193.78,193.77,0.063]
[1739708115803,23.38214853,193.78,193.77,0.063]
[1739708119942,53.38214853,193.78,193.77,0.063]
[1739708126323,1.0,193.7,193.68,0.063]
[1739708126517,20.0,193.69,193.68,0.063]
[1739708128715,19.90528033,193.69,193.68,0.063]
[1739708130418,34.31712886,193.69,193.68,0.063]
[1739708130622,35.31712886,193.69,193.68,0.063]
[1739708130941,41.46282886,193.69,193.68,0.063]
[1739708131848,34.31712886,193.69,193.68,0.063]
[1739708132944,33.31712886,193.69,193.68,0.063]
[1739708133148,2.0,193.72,193.68,0.063]
[1739708133319,1.0,193.72,193.68,0.063]
[1739708133520,2.0,193.69,193.68,0.063]
[1739708133720,37.12122927,193.69,193.68,0.063]
[1739708134136,36.12122927,193.69,193.68,0.063]
[1739708134542,37.12122927,193.69,193.68,0.063]
[1739708142358,38.66372927,193.69,193.68,0.063]
[1739708143849,68.66372927,193.69,193.68,0.063]
[1739708149768,38.66372927,193.69,193.68,0.063]
[1739708150869,37.12122927,193.69,193.68,0.063]
[1739708155079,35.12122927,193.69,193.68,0.063]
[1739708156970,21.70938074,193.69,193.68,0.063]
[1739708160473,36.12122927,193.69,193.68,0.063]
[1739708160685,37.12122927,193.69,193.68,0.063]
[1739708161297,37.12122927,193.69,193.62,0.063]
[1739708161298,13.41184853,193.64,193.62,0.063]
[1739708163773,1.0,193.63,193.62,0.063]
[1739708163976,2.0,193.63,193.62,0.063]
[1739708165075,1.0,193.63,193.62,0.063]
[1739708165378,2.0,193.63,193.62,0.063]
[1739708166897,15.41184853,193.64,193.62,0.063]
[1739708167103,13.41184853,193.64,193.62,0.063]
[1739708167531,13.41184853,193.65,193.62,0.063]
[1739708167822,15.41184853,193.65,193.62,0.063]
[1739708168811,20.0,193.63,193.62,0.063]
[1739708171211,33.41184853,193.63,193.62,0.063]
[1739708171515,34.41184853,193.63,193.62,0.063]
[1739708173802,33.41184853,193.63,193.62,0.063]
[1739708173995,34.41184853,193.63,193.62,0.063]
[1739708175594,35.41184853,193.63,193.62,0.063]
[1739708183510,65.41184853,193.63,193.62,0.063]
[1739708186027,35.41184853,193.63,193.62,0.063]
[1739708187799,65.41184853,193.63,193.62,0.063]
[1739708188001,2.0,193.61,193.58,0.063]
[1739708189038,45.41184853,193.61,193.58,0.063]
[1739708190611,46.35799575,193.61,193.58,0.063]
[1739708190930,23.04914853,193.6,193.58,0.063]
[1739708191125,53.99529575,193.6,193.58,0.063]
[1739708191625,97.94884853,193.59,193.58,0.063]
[1739708191829,98.89499575,193.59,193.58,0.063]
[1739708192020,128.89499575,193.59,193.58,0.063]
[1739708196442,136.79829575,193.59,193.58,0.063]
[1739708196625,1.0,193.5,193.48,1.7294]
[1739708196940,14.41184853,193.5,193.48,1.7294]
[1739708198506,1.0,193.53,193.48,1.7294]
[1739708198710,2.0,193.54,193.48,1.7294]
[1739708198910,82.6,193.53,193.48,1.7294]
[1739708199342,20.0,193.5,193.48,1.7294]
[1739708200352,1.0,193.56,193.48,1.7294]
[1739708200841,1.0,193.55,193.48,1.7294]
[1739708201138,82.6,193.54,193.48,1.7294]
[1739708201522,20.0,193.51,193.48,1.7294]
[1739708201729,82.6,193.5,193.48,1.7294]
[1739708202035,83.6,193.5,193.48,1.7294]
[1739708204965,82.6,193.5,193.48,1.7294]
[1739708205750,20.0,193.5,193.48,1.7294]
[1739708205920,21.0,193.5,193.48,1.7294]
[1739708207046,20.0,193.5,193.48,1.7294]
[1739708207549,1.0,193.51,193.48,1.7294]
[1739708207752,20.0,193.5,193.48,1.7294]
[1739708207943,21.0,193.5,193.48,1.7294]
[1739708209146,21.0,193.5,193.48,0.063]
[1739708209525,34.41184853,193.5,193.48,0.063]
[1739708210942,35.41184853,193.5,193.48,0.063]
[1739708211548,33.41184853,193.5,193.48,0.063]
[1739708211853,2.0,193.5,193.48,0.063]
[1739708212529,2.0,193.51,193.48,0.063]
[1739708215255,2.0,193.55,193.48,0.063]
[1739708215453,1.0,193.52,193.48,0.063]
[1739708215662,1.0,193.51,193.48,0.063]
[1739708216164,21.0,193.51,193.48,0.063]
[1739708216836,1.0,193.5,193.48,0.063]
[1739708217044,15.41184853,193.5,193.48,0.063]
[1739708217858,1.0,193.5,193.48,0.063]
[1739708218058,2.0,193.5,193.48,0.063]
[1739708218760,22.0,193.5,193.48,0.063]
[1739708219244,20.0,193.5,193.48,0.063]
[1739708219445,21.0,193.5,193.48,0.063]
[1739708220455,20.0,193.5,193.48,0.063]
[1739708220662,21.0,193.5,193.48,0.063]
[1739708221047,35.41184853,193.5,193.48,0.063]
[1739708224764,65.41184853,193.5,193.48,0.063]
[1739708227153,22.0,193.47,193.43,0.063]
[1739708227355,15.41184853,193.47,193.43,0.063]
[1739708228273,45.41184853,193.47,193.43,0.063]
[1739708230346,44.41184853,193.47,193.43,0.063]
[1739708230969,45.41184853,193.47,193.43,0.063]
[1739708232679,15.41184853,193.47,193.43,0.063]
[1739708233982,14.41184853,193.47,193.43,0.063]
[1739708234584,13.41184853,193.47,193.43,0.063]
[1739708235565,15.41184853,193.47,193.43,0.063]
[1739708235881,14.41184853,193.47,193.43,0.063]
[1739708237275,13.41184853,193.47,193.43,0.063]
[1739708237784,14.41184853,193.47,193.43,0.063]
[1739708239583,13.41184853,193.47,193.43,0.063]
[1739708240492,14.41184853,193.47,193.43,0.063]
[1739708240681,15.41184853,193.47,193.43,0.063]
[1739708240870,14.41184853,193.47,193.43,0.063]
[1739708241884,13.41184853,193.47,193.43,0.063]
[1739708242686,14.41184853,193.47,193.43,0.063]
[1739708243580,13.41184853,193.47,193.43,0.063]
[1739708243784,14.41184853,193.47,193.43,0.063]
[1739708245489,15.41184853,193.47,193.43,0.063]
[1739708248985,14.41184853,193.47,193.43,0.063]
[1739708249189,13.41184853,193.47,193.43,0.063]
[1739708249694,14.41184853,193.47,193.43,0.063]
[1739708250867,15.41184853,193.47,193.43,0.063]
[1739708255690,14.41184853,193.47,193.43,0.063]
[1739708255865,15.41184853,193.47,193.43,0.063]
[1739708266415,14.41184853,193.47,193.43,0.063]
[1739708266797,15.41184853,193.47,193.43,0.063]
[1739708268530,14.41184853,193.47,193.43,0.063]
[1739708268724,15.41184853,193.47,193.43,0.063]
[1739708271318,14.41184853,193.47,193.43,0.063]
[1739708272339,15.41184853,193.47,193.43,0.063]
[1739708273013,19.1685792,193.47,193.43,0.063]
[1739708273408,49.1685792,193.47,193.43,0.063]
[1739708273927,56.41802024,193.47,193.43,0.063]
[1739708274225,56.41802024,193.47,193.46,0.00264944]
[1739708274614,56.41802024,193.47,193.43,0.063]
[1739708274615,15.41184853,193.46,193.43,0.063]
[1739708274798,50.11502024,193.46,193.43,0.063]
[1739708275004,132.71502024,193.46,193.43,0.063]
[1739708275228,50.11502024,193.46,193.43,0.063]
[1739708275623,15.41184853,193.43,193.42,0.063]
[1739708275804,45.41184853,193.43,193.42,0.063]
[1739708279430,53.52279777,193.43,193.42,0.063]
[1739708280507,51.52279777,193.43,193.42,0.063]
[1739708280708,8.11094924,193.43,193.42,0.063]
[1739708280903,23.52279777,193.43,193.42,0.063]
[1739708281410,15.41184853,193.43,193.42,0.063]
[1739708281714,45.41184853,193.43,193.42,0.063]
[1739708284721,15.41184853,193.43,193.42,0.063]
[1739708285732,45.41184853,193.43,193.42,0.063]
[1739708286441,15.41184853,193.43,193.42,0.063]
[1739708287738,45.41184853,193.43,193.42,0.063]
[1739708290541,35.41184853,193.4,193.39,0.063]
[1739708290740,65.41184853,193.4,193.39,0.063]
[1739708292733,66.35828957,193.4,193.39,0.063]
[1739708293343,152.51184853,193.39,193.28,7.664]
[1739708293521,46.35828957,193.39,193.28,7.664]
[1739708294018,46.35828957,193.39,193.07,8.09553994]
[1739708294019,15.41184853,193.27,193.2,1.5612]
[1739708294221,20.0,193.23,193.2,1.5612]
[1739708294431,33.41184853,193.23,193.2,1.5612]
[1739708294831,2.0,193.26,193.2,1.5612]
[1739708295225,13.41184853,193.24,193.2,1.5612]
[1739708300124,2.0,193.27,193.2,1.5612]
[1739708300446,20.0,193.23,193.2,1.5612]
[1739708305565,21.0,193.23,193.2,1.5612]
[1739708305860,34.41184853,193.23,193.2,1.5612]
[1739708306078,33.41184853,193.23,193.2,1.5612]
[1739708307034,82.6,193.25,193.2,1.5612]
[1739708307239,1.0,193.29,193.2,1.5612]
[1739708307435,82.6,193.28,193.2,1.5612]
[1739708307853,20.0,193.25,193.2,1.5612]
[1739708310185,20.0,193.24,193.22,0.03]
[1739708310591,20.0,193.23,193.22,0.03]
[1739708310767,34.41184853,193.23,193.22,0.03]
[1739708311175,20.0,193.23,193.22,0.03]
[1739708320969,20.0,193.23,193.22,7.7569]
[1739708323612,20.0,193.23,193.22,1.5449]
[1739708323782,20.0,193.23,193.22,0.03]
[1739708324794,82.6,193.24,193.22,0.03]
[1739708326222,82.6,193.23,193.22,0.03]
[1739708330326,20.0,193.24,193.22,0.03]
[1739708341021,0.063,193.26,193.22,0.03]
[1739708341221,20.0,193.25,193.22,0.03]
[1739708345143,82.6,193.24,193.22,0.03]
[1739708345740,0.063,193.26,193.24,6.3046]
[1739708347321,8.06169518,193.29,193.25,1.608]
[1739708349628,82.6,193.38,193.25,1.608]
[1739708350235,20.0,193.35,193.25,1.608]
[1739708354044,20.0,193.34,193.25,1.608]
[1739708355660,0.063,193.35,193.25,1.608]
[1739708356765,0.063,193.35,193.26,13.41184853]
[1739708357062,0.063,193.35,193.27,6.5258]
[1739708385496,0.063,193.35,193.27,7.5258]
[1739708386686,0.063,193.35,193.28,1.0]
[1739708391914,0.063,193.35,193.29,13.41184853]
[1739708392818,0.063,193.35,193.29,14.41184853]
[1739708393316,0.063,193.35,193.31,13.41184853]
[1739708395613,0.063,193.35,193.34,33.41184853]
[1739708396003,0.063,193.35,193.34,44.31803801]
[1739708396719,0.063,193.35,193.34,43.31803801]
[1739708396906,0.063,193.35,193.34,44.31803801]
[1739708397593,0.063,193.35,193.34,41.54254853]
[1739708399918,0.063,193.35,193.34,28.1307]
[1739708400519,0.063,193.35,193.34,44.3180923]
[1739708400727,0.063,193.35,193.34,261.4180923]
[1739708401015,0.063,193.35,193.34,260.64254853]
[1739708402519,0.063,193.35,193.34,259.64254853]
[1739708403742,0.063,193.35,193.34,258.64254853]
[1739708404220,0.063,193.35,193.34,259.64254853]
[1739708404413,0.063,193.35,193.34,258.64254853]
[1739708404611,0.063,193.35,193.34,123.44254853]
[1739708404812,0.063,193.35,193.34,124.44254853]
[1739708407829,0.063,193.35,193.34,123.44254853]
[1739708408226,0.063,193.35,193.34,124.44254853]
[1739708408429,0.063,193.35,193.34,123.44254853]
[1739708408916,0.063,193.35,193.34,116.93184853]
[1739708409245,0.063,193.35,193.34,115.31184853]
[1739708413828,0.063,193.35,193.34,101.9]
[1739708414434,0.063,193.35,193.34,102.9]
[1739708415433,0.063,193.35,193.34,101.9]
[1739708421040,0.063,193.35,193.34,102.9]
[1739708421419,0.063,193.35,193.34,101.9]
[1739708421619,0.063,193.35,193.34,102.9]
[1739708422044,0.063,193.35,193.34,101.9]
[1739708450862,0.063,193.35,193.34,102.9]
[1739708452060,0.063,193.35,193.34,101.9]
[1739708452251,0.063,193.35,193.34,102.9]
[1739708456964,0.063,193.35,193.34,116.31184853]
[1739708460857,0.063,193.35,193.34,252.51184853]
[1739708461067,0.063,193.43,193.39,13.41184853]
[1739708461270,0.063,193.43,193.39,96.08708708]
[1739708461475,0.063,193.43,193.42,20.0]
[1739708467283,0.063,193.43,193.39,81.9]
[1739708467778,0.063,193.43,193.37,81.9]
[1739708471377,1.6279,193.42,193.33,81.9]
[1739708473085,1.6279,193.42,193.33,82.9]
[1739708473464,1.6279,193.42,193.33,81.9]
[1739708474398,1.6279,193.42,193.33,82.9]
[1739708475290,1.6279,193.42,193.33,81.9]
[1739708475782,1.6279,193.42,193.34,13.41184853]
[1739708479780,1.6909,193.42,193.34,13.41184853]
[1739708481797,1.6909,193.42,193.33,81.93]
[1739708481798,104.2909,193.42,193.33,81.93]
[1739708481974,89.1167,193.41,193.33,0.03]
[1739708482173,82.6,193.4,193.33,0.03]
[1739708483779,20.0,193.37,193.33,0.03]
[1739708483974,82.6,193.4,193.33,0.03]
[1739708483975,21.6648,193.36,193.33,0.03]
[1739708487799,20.0,193.35,193.33,0.03]
[1739708488202,6.5167,193.34,193.33,0.03]
[1739708491502,1.6648,193.36,193.33,0.03]
[1739708492584,21.6648,193.36,193.33,0.03]
[1739708501326,1.6648,193.36,193.33,0.03]
[1739708501514,6.5167,193.39,193.33,0.03]
[1739708503719,20.0,193.36,193.33,0.03]
[1739708505117,20.063,193.36,193.33,0.03]
[1739708505307,0.063,193.36,193.33,0.03]
[1739708513513,0.063,193.36,193.33,14.44184853]
[1739708513822,0.063,193.36,193.35,37.05324853]
[1739708517025,0.063,193.36,193.34,0.7755046]
[1739708517213,0.063,193.36,193.33,0.03]
[1739708519525,0.063,193.36,193.34,1.0]
[1739708519705,0.063,193.36,193.35,36.18725338]
[1739708520025,0.063,193.36,193.35,254.92865338]
[1739708520255,0.063,193.36,193.35,254.15324853]
[1739708528952,0.063,193.36,193.35,254.18324853]
[1739708542365,0.063,193.42,193.41,14.41184853]
[1739708542659,0.063,193.42,193.41,97.08696449]
[1739708556876,0.063,193.42,193.41,96.08696449]
[1739708557184,0.063,193.42,193.41,81.9]
[1739708558982,0.063,193.42,193.37,13.41184853]
[1739708559188,0.063,193.42,193.37,95.31184853]
[1739708559662,0.063,193.42,193.37,96.31184853]
[1739708559974,0.063,193.42,193.37,95.31184853]
[1739708562259,0.063,193.42,193.37,96.31184853]
[1739708562691,0.063,193.42,193.38,1.0]
[1739708562864,0.063,193.42,193.37,96.31184853]
[1739708563882,0.063,193.42,193.37,95.31184853]
[1739708566090,0.063,193.42,193.37,81.9]
[1739708569398,0.063,193.42,193.37,81.9]
[1739708570998,0.063,193.42,193.35,0.03]
[1739708579095,0.063,193.42,193.35,1.03]
[1739708581299,0.063,193.42,193.35,0.03]
[1739708581692,0.063,193.42,193.35,1.03]
[1739708582702,0.063,193.42,193.35,0.03]
[1739708582889,0.063,193.42,193.35,81.93]
[1739708583603,0.063,193.42,193.35,82.93]
[1739708583804,0.063,193.42,193.35,81.93]
[1739708585285,0.063,193.42,193.35,82.93]
[1739708585507,0.063,193.42,193.35,81.93]
[1739708586488,0.063,193.42,193.35,82.93]
[1739708587393,0.063,193.42,193.37,1.0]
[1739708587583,0.063,193.42,193.38,14.41184853]
[1739708587789,0.063,193.42,193.39,1.0]
[1739708589009,0.063,193.42,193.4,14.41184853]
[1739708594196,0.063,193.42,193.41,1.0]
[1739708595318,0.063,193.42,193.41,14.41184853]
[1739708600723,0.063,193.42,193.41,96.31184853]
[1739708605024,0.063,193.42,193.41,95.31184853]
[1739708605319,0.063,193.42,193.41,96.31184853]
[1739708617437,0.063,193.42,193.41,98.08707838]
[1739708621841,0.063,193.42,193.41,100.09560255]
[1739708624048,0.063,193.42,193.41,96.31184853]
[1739708626627,0.063,193.42,193.41,97.31184853]
[1739708630240,0.063,193.42,193.41,232.51184853]
[1739708630438,0.063,193.42,193.41,240.31504853]
[1739708632341,0.063,193.42,193.41,234.04234853]
[1739708632547,0.063,193.42,193.41,96.31184853]
[1739708633921,0.063,193.42,193.41,97.31184853]
[1739708642163,0.063,193.42,193.41,232.51184853]
[1739708660285,0.063,193.42,193.41,231.51184853]
[1739708661875,0.063,193.42,193.41,230.51184853]
[1739708662188,0.063,193.42,193.41,81.9]
[1739708666078,0.063,193.42,193.4,1.0]
[1739708674209,0.063,193.42,193.38,96.31184853]
[1739708675996,0.063,193.42,193.38,95.31184853]
[1739708676322,0.063,193.42,193.36,81.93]
[1739708676323,1.708,193.42,193.36,81.93]
[1739708676501,1.708,193.42,193.36,0.03]
[1739708678416,1.708,193.42,193.36,13.44184853]
[1739708678610,1.708,193.42,193.37,1.0]
[1739708678809,0.063,193.42,193.37,1.0]
[1739708680696,0.063,193.42,193.38,14.41184853]
[1739708692933,0.063,193.42,193.38,13.41184853]
[1739708694737,0.063,193.42,193.38,14.41184853]
[1739708695116,0.063,193.42,193.38,13.41184853]
[1739708698531,0.063,193.42,193.38,14.41184853]
[1739708701343,0.063,193.42,193.38,13.41184853]
[1739708703447,0.063,193.42,193.36,101.93]
[1739708703826,1.5958,193.41,193.36,81.93]
[1739708704544,1.5958,193.41,193.36,0.03]
[1739708706041,84.1958,193.41,193.36,0.03]
[1739708710639,82.6,193.4,193.36,0.03]
[1739708713258,82.6,193.39,193.36,0.03]
[1739708716529,82.6,193.38,193.36,0.03]
[1739708716856,82.6,193.37,193.36,0.03]
[1739708729253,82.663,193.42,193.36,0.03]
[1739708730169,0.063,193.39,193.36,0.03]
[1739708742983,0.063,193.39,193.36,13.44184853]
[1739708745990,0.063,193.39,193.36,0.03]
[1739708753194,0.063,193.39,193.38,33.41184853]
[1739708753491,0.063,193.39,193.38,35.41184853]
[1739708755084,0.063,193.39,193.38,42.04504853]
[1739708755278,0.063,193.39,193.38,43.68004853]
[1739708755791,0.063,193.39,193.38,125.58004853]
[1739708757379,0.063,193.39,193.38,124.58004853]
[1739708758596,0.063,193.39,193.38,117.94684853]
[1739708758806,0.063,193.39,193.38,115.31184853]
[1739708759296,0.063,193.39,193.38,101.9]
[1739708759500,0.063,193.39,193.36,0.03]
[1739708767199,1.6175,193.39,193.36,0.03]
[1739708772928,82.6,193.38,193.36,0.03]
[1739708773116,82.6,193.37,193.36,0.03]
[1739708787544,82.663,193.37,193.36,0.03]
[1739708790776,0.063,193.37,193.36,0.03]
[1739708793056,1.631,193.37,193.36,0.03]
[1739708796772,0.063,193.37,193.36,0.03]
[1739708801474,0.063,193.37,193.36,0.03]
[1739708832718,20.063,193.37,193.36,0.03]
[1739708863642,33.47484853,193.37,193.36,0.03]
[1739708871149,15.41184853,193.36,193.35,0.03]
[1739708872359,14.41184853,193.36,193.35,0.03]
[1739708872660,15.41184853,193.36,193.35,0.03]
[1739708873770,14.41184853,193.36,193.35,0.03]
[1739708876646,15.41184853,193.36,193.35,0.03]
[1739708880180,14.41184853,193.36,193.35,0.03]
[1739708881457,0.063,193.37,193.35,0.03]
[1739708882087,20.0,193.36,193.35,0.03]
[1739708882460,0.063,193.37,193.35,0.03]
[1739708884261,20.0,193.36,193.35,0.03]
[1739708885889,0.063,193.37,193.35,0.03]
[1739708892684,0.063,193.37,193.35,6.5963]
[1739708913837,0.063,193.37,193.35,0.03]
[1739708921540,82.663,193.37,193.35,0.03]
[1739708927545,82.6,193.36,193.35,0.03]
[1739708951257,82.663,193.36,193.35,0.03]
[1739708996522,20.063,193.36,193.35,0.03]
[1739708997101,1.6333,193.36,193.35,0.03]
[1739709000213,15.04514853,193.36,193.35,0.03]
[1739709000422,17.04514853,193.36,193.35,0.03]
[1739709000717,14.41184853,193.35,193.33,0.03]
[1739709001025,1.0,193.34,193.33,0.03]
[1739709002121,14.41184853,193.34,193.33,0.03]
[1739709002519,16.50679868,193.34,193.33,0.03]
[1739709004112,16.50679868,193.34,193.26,0.03]
[1739709004113,20.0,193.3,193.26,0.03]
[1739709004301,82.6,193.29,193.26,0.03]
[1739709005105,83.6,193.28,193.26,0.03]
[1739709006698,82.6,193.28,193.26,0.03]
[1739709008004,83.6,193.28,193.26,0.03]
[1739709009224,82.6,193.28,193.26,0.03]
[1739709010819,82.6,193.27,193.26,0.03]
[1739709016531,20.0,193.29,193.26,0.03]
[1739709022521,1.0,193.33,193.26,0.03]
[1739709022839,0.063,193.35,193.26,0.03]
[1739709023020,20.063,193.35,193.26,0.03]
[1739709023217,20.0,193.34,193.26,0.03]
[1739709023620,0.063,193.33,193.26,0.03]
[1739709025741,20.0,193.3,193.26,0.03]